[Event "Late-Titled-Tuesday-Blitz-September-05-2023"]
[Site "Chess.com"]
[Date "2023.09.05"]
[Round "6"]
[White "FredddieCroderg"]
[Black "Jaka_Brilej"]
[Result "0-1"]
[WhiteElo "2295"]
[BlackElo "2467"]
[TimeControl "180+1"]
[EndTime "15:05:58 PDT"]
[Termination "Jaka_Brilej won on time"]

1. e4 {[%clk 0:03:00.9]} 1... c5 {[%clk 0:02:59.6]} 2. Nf3 {[%clk 0:02:59.7]}
2... Nc6 {[%clk 0:03:00]} 3. d4 {[%clk 0:02:58.9]} 3... cxd4 {[%clk 0:03:00.9]}
4. Nxd4 {[%clk 0:02:59.5]} 4... g6 {[%clk 0:03:01.5]} 5. c4 {[%clk 0:02:51.9]}
5... Bg7 {[%clk 0:03:01.4]} 6. Be3 {[%clk 0:02:52.5]} 6... Nf6 {[%clk
0:03:01.6]} 7. Nc3 {[%clk 0:02:53.1]} 7... O-O {[%clk 0:03:01.7]} 8. Be2 {[%clk
0:02:53.1]} 8... d6 {[%clk 0:03:02.3]} 9. O-O {[%clk 0:02:53.1]} 9... Bd7 {[%clk
0:03:02.9]} 10. Qd2 {[%clk 0:02:52.6]} 10... Nxd4 {[%clk 0:03:02.9]} 11. Bxd4
{[%clk 0:02:53.5]} 11... Bc6 {[%clk 0:03:03.4]} 12. f3 {[%clk 0:02:52.7]} 12...
a5 {[%clk 0:03:02.9]} 13. Rac1 {[%clk 0:02:49.7]} 13... Nd7 {[%clk 0:03:01.5]}
14. Be3 {[%clk 0:02:48.7]} 14... Nc5 {[%clk 0:03:01.8]} 15. Rfd1 {[%clk
0:02:42.2]} 15... Qc7 {[%clk 0:02:45.6]} 16. Rc2 {[%clk 0:02:27.8]} 16... Rfd8
{[%clk 0:02:43.3]} 17. Rb1 {[%clk 0:02:22.4]} 17... e6 {[%clk 0:02:42.8]} 18. b3
{[%clk 0:02:19.5]} 18... Be5 {[%clk 0:02:37.4]} 19. Kh1 {[%clk 0:02:12.3]} 19...
Rd7 {[%clk 0:02:25]} 20. a3 {[%clk 0:02:12.4]} 20... Rad8 {[%clk 0:02:24]} 21.
b4 {[%clk 0:02:12.8]} 21... axb4 {[%clk 0:02:22.5]} 22. axb4 {[%clk 0:02:13.7]}
22... Na4 {[%clk 0:02:22.9]} 23. b5 {[%clk 0:01:54.7]} 23... Nxc3 {[%clk
0:02:20.1]} 24. Rxc3 {[%clk 0:01:54.3]} 24... Bxc3 {[%clk 0:02:19.3]} 25. Qxc3
{[%clk 0:01:54.6]} 25... Bxb5 {[%clk 0:02:19.6]} 26. Rxb5 {[%clk 0:01:53.8]}
26... d5 {[%clk 0:02:20]} 27. Bh6 {[%clk 0:01:33.6]} 27... d4 {[%clk 0:02:18.8]}
28. Qb3 {[%clk 0:01:21.9]} 28... e5 {[%clk 0:02:16.5]} 29. Bd3 {[%clk
0:01:20.9]} 29... Ra8 {[%clk 0:02:15.8]} 30. h3 {[%clk 0:01:16.9]} 30... Qc6
{[%clk 0:02:09.5]} 31. Rb6 {[%clk 0:01:11.3]} 31... Qc5 {[%clk 0:02:09.7]} 32.
Bg5 {[%clk 0:01:07.2]} 32... Ra3 {[%clk 0:02:04.7]} 33. Qb1 {[%clk 0:00:25]}
33... Rxd3 {[%clk 0:02:00.6]} 34. Rxb7 {[%clk 0:00:14.8]} 34... Rd1+ {[%clk
0:01:57.2]} 35. Qxd1 {[%clk 0:00:13.2]} 35... Rxb7 {[%clk 0:01:56.7]} 36. Qa4
{[%clk 0:00:13.8]} 36... Qb6 {[%clk 0:01:51.8]} 37. Qe8+ {[%clk 0:00:12.8]}
37... Kg7 {[%clk 0:01:51.9]} 38. h4 {[%clk 0:00:03.9]} 38... Rb8 {[%clk
0:01:47.1]} 39. Qxe5+ {[%clk 0:00:03.1]} 39... Kg8 {[%clk 0:01:43.8]} 40. Bf6
{[%clk 0:00:01.9]} 40... Qb1+ {[%clk 0:01:40.9]} 41. Kh2 {[%clk 0:00:01.9]}
41... Qb6 {[%clk 0:01:32.8]} 0-1

[Event "Late-Titled-Tuesday-Blitz-September-05-2023"]
[Site "Chess.com"]
[Date "2023.09.05"]
[Round "6"]
[White "Kostukov_Alex"]
[Black "Bilan_Danila"]
[Result "0-1"]
[WhiteElo "2401"]
[BlackElo "2512"]
[TimeControl "180+1"]
[EndTime "15:06:01 PDT"]
[Termination "Bilan_Danila won by resignation"]

1. g3 {[%clk 0:03:00]} 1... d5 {[%clk 0:03:00.1]} 2. Bg2 {[%clk 0:02:57.6]} 2...
Nf6 {[%clk 0:03:01]} 3. d3 {[%clk 0:02:57.8]} 3... c5 {[%clk 0:03:01.5]} 4. e4
{[%clk 0:02:58.1]} 4... Nc6 {[%clk 0:03:01.3]} 5. exd5 {[%clk 0:02:56.8]} 5...
Nxd5 {[%clk 0:03:02.2]} 6. Nc3 {[%clk 0:02:57.6]} 6... e6 {[%clk 0:02:55]} 7.
Nge2 {[%clk 0:02:57]} 7... Be7 {[%clk 0:02:54.2]} 8. O-O {[%clk 0:02:56.8]} 8...
b6 {[%clk 0:02:46.6]} 9. Nxd5 {[%clk 0:02:56.2]} 9... exd5 {[%clk 0:02:47.3]}
10. Nf4 {[%clk 0:02:56.5]} 10... O-O {[%clk 0:02:20.1]} 11. Nxd5 {[%clk
0:02:50.1]} 11... Bd6 {[%clk 0:02:13.1]} 12. Bf4 {[%clk 0:02:47.2]} 12... Bb7
{[%clk 0:02:09.7]} 13. Bxd6 {[%clk 0:02:26.6]} 13... Qxd6 {[%clk 0:02:10.3]} 14.
Nf4 {[%clk 0:02:22.6]} 14... Rae8 {[%clk 0:01:59.4]} 15. Re1 {[%clk 0:02:19.3]}
15... Bc8 {[%clk 0:01:44.7]} 16. Qh5 {[%clk 0:01:52.6]} 16... Nd4 {[%clk
0:01:39]} 17. Rxe8 {[%clk 0:01:32.4]} 17... Rxe8 {[%clk 0:01:37.2]} 18. Bd5
{[%clk 0:01:13]} 18... g6 {[%clk 0:01:30.6]} 19. Qh6 {[%clk 0:01:00.2]} 19...
Nxc2 {[%clk 0:01:00.9]} 20. Bxf7+ {[%clk 0:00:52.5]} 20... Kxf7 {[%clk
0:00:59.7]} 21. Qxh7+ {[%clk 0:00:53.1]} 21... Kf6 {[%clk 0:00:52.6]} 22. Qxg6+
{[%clk 0:00:46.3]} 22... Ke7 {[%clk 0:00:52.5]} 23. Qg5+ {[%clk 0:00:30.8]}
23... Kd7 {[%clk 0:00:48.8]} 24. Rc1 {[%clk 0:00:27]} 24... Nd4 {[%clk
0:00:45.2]} 25. b4 {[%clk 0:00:18.1]} 25... Nf3+ {[%clk 0:00:44.4]} 0-1

[Event "Late-Titled-Tuesday-Blitz-September-05-2023"]
[Site "Chess.com"]
[Date "2023.09.05"]
[Round "6"]
[White "traack"]
[Black "CraiggoryC"]
[Result "1-0"]
[WhiteElo "2373"]
[BlackElo "2233"]
[TimeControl "180+1"]
[EndTime "15:06:03 PDT"]
[Termination "traack won on time"]

1. e4 {[%clk 0:03:00.9]} 1... e6 {[%clk 0:02:58.7]} 2. d4 {[%clk 0:03:00.1]}
2... d5 {[%clk 0:02:59.2]} 3. Nd2 {[%clk 0:03:00]} 3... Be7 {[%clk 0:02:59.2]}
4. Ngf3 {[%clk 0:02:59.3]} 4... Nf6 {[%clk 0:02:58.9]} 5. Bd3 {[%clk 0:02:56]}
5... c5 {[%clk 0:02:55.5]} 6. c3 {[%clk 0:02:52.6]} 6... dxe4 {[%clk 0:02:49.9]}
7. Nxe4 {[%clk 0:02:51.6]} 7... cxd4 {[%clk 0:02:49.7]} 8. cxd4 {[%clk
0:02:49.8]} 8... Nc6 {[%clk 0:02:49.7]} 9. O-O {[%clk 0:02:48.9]} 9... O-O
{[%clk 0:02:49.5]} 10. Be3 {[%clk 0:02:45.1]} 10... b6 {[%clk 0:02:43.8]} 11.
Nxf6+ {[%clk 0:02:36.5]} 11... Bxf6 {[%clk 0:02:42.5]} 12. Bxh7+ {[%clk
0:02:33.6]} 12... Kxh7 {[%clk 0:02:20.7]} 13. Qc2+ {[%clk 0:02:32.9]} 13... Kg8
{[%clk 0:02:19.7]} 14. Qxc6 {[%clk 0:02:33.1]} 14... Ba6 {[%clk 0:02:12.3]} 15.
Rfe1 {[%clk 0:02:24.5]} 15... Rc8 {[%clk 0:02:12]} 16. Qa4 {[%clk 0:02:23.3]}
16... Bd3 {[%clk 0:02:11.6]} 17. Rac1 {[%clk 0:02:18.8]} 17... Be4 {[%clk
0:02:00.5]} 18. Ne5 {[%clk 0:02:12.9]} 18... Qd5 {[%clk 0:01:36.3]} 19. f3
{[%clk 0:02:07.3]} 19... Bxe5 {[%clk 0:01:36.1]} 20. dxe5 {[%clk 0:02:00.9]}
20... Bg6 {[%clk 0:01:16.3]} 21. Qxa7 {[%clk 0:01:58.7]} 21... Qxe5 {[%clk
0:00:43.1]} 22. Qxb6 {[%clk 0:01:31.4]} 22... Rb8 {[%clk 0:00:17.5]} 23. Qd4
{[%clk 0:01:30.8]} 23... Qa5 {[%clk 0:00:14.1]} 24. a3 {[%clk 0:01:25.8]} 24...
Rfd8 {[%clk 0:00:14.2]} 25. Qf4 {[%clk 0:01:20.2]} 25... Rxb2 {[%clk 0:00:12.8]}
26. Bd4 {[%clk 0:01:16]} 26... Rd2 {[%clk 0:00:09.3]} 27. Bc3 {[%clk 0:00:58.7]}
27... Qb6+ {[%clk 0:00:02]} 28. Kh1 {[%clk 0:00:58.9]} 1-0

[Event "Late-Titled-Tuesday-Blitz-September-05-2023"]
[Site "Chess.com"]
[Date "2023.09.05"]
[Round "6"]
[White "WindWhistler11"]
[Black "Godzillator"]
[Result "1-0"]
[WhiteElo "2481"]
[BlackElo "2326"]
[TimeControl "180+1"]
[EndTime "15:06:05 PDT"]
[Termination "WindWhistler11 won by resignation"]

1. Nf3 {[%clk 0:03:00.9]} 1... Nf6 {[%clk 0:02:57.9]} 2. g3 {[%clk 0:03:00.7]}
2... c5 {[%clk 0:02:55.8]} 3. Bg2 {[%clk 0:03:00.2]} 3... Nc6 {[%clk 0:02:56.2]}
4. O-O {[%clk 0:03:00.4]} 4... e6 {[%clk 0:02:55.6]} 5. b3 {[%clk 0:02:59]} 5...
Be7 {[%clk 0:02:55.8]} 6. Bb2 {[%clk 0:02:59.6]} 6... O-O {[%clk 0:02:56.4]} 7.
c4 {[%clk 0:02:57.6]} 7... d5 {[%clk 0:02:56.5]} 8. d3 {[%clk 0:02:57.9]} 8...
b6 {[%clk 0:02:56.3]} 9. Nbd2 {[%clk 0:02:58.5]} 9... Bb7 {[%clk 0:02:56.7]} 10.
a3 {[%clk 0:02:58.4]} 10... Rc8 {[%clk 0:02:54.2]} 11. Qc2 {[%clk 0:02:57.8]}
11... d4 {[%clk 0:02:53.9]} 12. e4 {[%clk 0:02:54]} 12... dxe3 {[%clk
0:02:52.6]} 13. fxe3 {[%clk 0:02:54.6]} 13... Ng4 {[%clk 0:02:50.8]} 14. Rae1
{[%clk 0:02:49.7]} 14... Bf6 {[%clk 0:02:49.8]} 15. Bxf6 {[%clk 0:02:44.4]}
15... Nxf6 {[%clk 0:02:49.5]} 16. Ng5 {[%clk 0:02:33.3]} 16... h6 {[%clk
0:02:44.4]} 17. Nh3 {[%clk 0:02:24.5]} 17... Qd7 {[%clk 0:02:37.5]} 18. Rxf6
{[%clk 0:02:19.5]} 18... gxf6 {[%clk 0:02:36]} 19. Ne4 {[%clk 0:02:20.2]} 19...
Qe7 {[%clk 0:02:31.6]} 20. Qc3 {[%clk 0:02:18.3]} 20... Ne5 {[%clk 0:02:21.3]}
21. Nhf2 {[%clk 0:02:02.2]} 21... Rfd8 {[%clk 0:02:11.9]} 22. d4 {[%clk
0:01:53.2]} 22... cxd4 {[%clk 0:02:08.5]} 23. exd4 {[%clk 0:01:52.9]} 23... Ng6
{[%clk 0:02:04.1]} 24. d5 {[%clk 0:01:33]} 24... e5 {[%clk 0:02:02]} 25. Ng4
{[%clk 0:01:30.8]} 25... Kh8 {[%clk 0:01:27.2]} 26. Qe3 {[%clk 0:01:26.2]} 26...
Qf8 {[%clk 0:01:21.4]} 27. Nexf6 {[%clk 0:01:19.4]} 27... Rd6 {[%clk 0:01:15.5]}
28. Rf1 {[%clk 0:01:07.7]} 28... Qg7 {[%clk 0:00:38.2]} 29. Nh5 {[%clk
0:01:01.7]} 29... Qf8 {[%clk 0:00:33.6]} 30. Nxe5 {[%clk 0:01:00.4]} 30... Kh7
{[%clk 0:00:11.4]} 31. Rxf7+ {[%clk 0:00:55.3]} 1-0

[Event "Late-Titled-Tuesday-Blitz-September-05-2023"]
[Site "Chess.com"]
[Date "2023.09.05"]
[Round "6"]
[White "kinga2008"]
[Black "talaicito"]
[Result "0-1"]
[WhiteElo "2375"]
[BlackElo "2270"]
[TimeControl "180+1"]
[EndTime "15:06:13 PDT"]
[Termination "talaicito won on time"]

1. e4 {[%clk 0:03:00.9]} 1... c5 {[%clk 0:02:58.6]} 2. Nf3 {[%clk 0:03:01.8]}
2... d6 {[%clk 0:02:58.3]} 3. c3 {[%clk 0:03:01.6]} 3... Nf6 {[%clk 0:02:57.8]}
4. Bd3 {[%clk 0:03:01.8]} 4... e6 {[%clk 0:02:55.3]} 5. Bc2 {[%clk 0:03:02.7]}
5... Be7 {[%clk 0:02:55.4]} 6. O-O {[%clk 0:03:03.3]} 6... c4 {[%clk 0:02:47.2]}
7. b3 {[%clk 0:03:02.5]} 7... b5 {[%clk 0:02:42.9]} 8. Na3 {[%clk 0:02:53.1]}
8... Ba6 {[%clk 0:02:41.9]} 9. d3 {[%clk 0:02:37.4]} 9... cxd3 {[%clk
0:02:37.6]} 10. Bxd3 {[%clk 0:02:38.3]} 10... O-O {[%clk 0:02:32.8]} 11. Qe2
{[%clk 0:02:29.5]} 11... Qa5 {[%clk 0:02:19.4]} 12. b4 {[%clk 0:02:09.7]} 12...
Qb6 {[%clk 0:02:08.2]} 13. Be3 {[%clk 0:02:04]} 13... Qb7 {[%clk 0:02:03.8]} 14.
Bxb5 {[%clk 0:01:56.7]} 14... Bxb5 {[%clk 0:01:59]} 15. Qxb5 {[%clk 0:01:26.7]}
15... Qxe4 {[%clk 0:01:57]} 16. Rad1 {[%clk 0:01:12.3]} 16... Rc8 {[%clk
0:01:32.7]} 17. Bd4 {[%clk 0:00:51.8]} 17... a6 {[%clk 0:01:18.4]} 18. Qa4
{[%clk 0:00:45.5]} 18... Nbd7 {[%clk 0:01:12.9]} 19. Rfe1 {[%clk 0:00:43.9]}
19... Qb7 {[%clk 0:01:12.3]} 20. Qb3 {[%clk 0:00:26.4]} 20... h6 {[%clk
0:00:30.3]} 0-1

[Event "Late-Titled-Tuesday-Blitz-September-05-2023"]
[Site "Chess.com"]
[Date "2023.09.05"]
[Round "6"]
[White "subham777"]
[Black "FaustinoOro"]
[Result "1-0"]
[WhiteElo "2560"]
[BlackElo "2841"]
[TimeControl "180+1"]
[EndTime "15:06:14 PDT"]
[Termination "subham777 won by resignation"]

1. e4 {[%clk 0:02:59.2]} 1... c5 {[%clk 0:02:56]} 2. Nf3 {[%clk 0:02:57.4]} 2...
d6 {[%clk 0:02:56.5]} 3. d4 {[%clk 0:02:55.7]} 3... cxd4 {[%clk 0:02:57.4]} 4.
Qxd4 {[%clk 0:02:56.1]} 4... Nf6 {[%clk 0:02:52.2]} 5. e5 {[%clk 0:02:52.9]}
5... Nc6 {[%clk 0:02:13]} 6. Bb5 {[%clk 0:02:46.7]} 6... Nd7 {[%clk 0:02:09.9]}
7. Bxc6 {[%clk 0:02:42.5]} 7... bxc6 {[%clk 0:02:09.2]} 8. exd6 {[%clk
0:02:42.2]} 8... exd6 {[%clk 0:02:08.7]} 9. O-O {[%clk 0:02:35.6]} 9... Nf6
{[%clk 0:01:56.8]} 10. Bg5 {[%clk 0:02:25.6]} 10... Be7 {[%clk 0:01:56.1]} 11.
Bxf6 {[%clk 0:02:22.8]} 11... Bxf6 {[%clk 0:01:55.8]} 12. Qe4+ {[%clk
0:02:22.9]} 12... Be7 {[%clk 0:01:41.6]} 13. Re1 {[%clk 0:02:15]} 13... d5
{[%clk 0:01:33.2]} 14. Qe3 {[%clk 0:02:09]} 14... Qc7 {[%clk 0:01:04.6]} 15. Nd4
{[%clk 0:01:47.5]} 15... Be6 {[%clk 0:00:42.4]} 16. Nxe6 {[%clk 0:01:44]} 16...
fxe6 {[%clk 0:00:43.3]} 17. Qxe6 {[%clk 0:01:44.4]} 17... Rf8 {[%clk 0:00:42.9]}
18. Nc3 {[%clk 0:01:37.6]} 18... Qd7 {[%clk 0:00:43]} 19. Qe2 {[%clk 0:01:29.1]}
19... Kf7 {[%clk 0:00:37.7]} 20. Rad1 {[%clk 0:01:19.7]} 20... Bf6 {[%clk
0:00:37.2]} 21. Na4 {[%clk 0:01:10.9]} 21... Rae8 {[%clk 0:00:35.5]} 22. Qh5+
{[%clk 0:01:05.3]} 22... Kg8 {[%clk 0:00:35.6]} 23. Nc5 {[%clk 0:00:56.7]} 23...
Rxe1+ {[%clk 0:00:29]} 24. Rxe1 {[%clk 0:00:55.5]} 24... Qd6 {[%clk 0:00:29.4]}
25. Nd3 {[%clk 0:00:39.5]} 25... Qd7 {[%clk 0:00:25.3]} 26. c3 {[%clk
0:00:33.4]} 26... g6 {[%clk 0:00:25]} 27. Qe2 {[%clk 0:00:32.9]} 27... Kg7
{[%clk 0:00:24.3]} 28. Nc5 {[%clk 0:00:32.4]} 1-0

[Event "Late-Titled-Tuesday-Blitz-September-05-2023"]
[Site "Chess.com"]
[Date "2023.09.05"]
[Round "6"]
[White "Perecke"]
[Black "thedjoker98"]
[Result "1-0"]
[WhiteElo "2505"]
[BlackElo "2622"]
[TimeControl "180+1"]
[EndTime "15:06:14 PDT"]
[Termination "Perecke won by resignation"]

1. e4 {[%clk 0:03:00.9]} 1... e5 {[%clk 0:03:00]} 2. Nf3 {[%clk 0:03:01.2]} 2...
Nc6 {[%clk 0:02:59.7]} 3. Bb5 {[%clk 0:03:00.6]} 3... g6 {[%clk 0:02:59.2]} 4.
d4 {[%clk 0:02:56.6]} 4... exd4 {[%clk 0:02:58.9]} 5. Nxd4 {[%clk 0:02:55.9]}
5... Bg7 {[%clk 0:02:59.2]} 6. c3 {[%clk 0:02:55.5]} 6... Nf6 {[%clk 0:02:46.2]}
7. O-O {[%clk 0:02:55.6]} 7... O-O {[%clk 0:02:45.9]} 8. Re1 {[%clk 0:02:54.8]}
8... Re8 {[%clk 0:02:45.4]} 9. Nd2 {[%clk 0:02:46.9]} 9... a6 {[%clk 0:02:41.7]}
10. Bxc6 {[%clk 0:02:44.4]} 10... dxc6 {[%clk 0:02:41.6]} 11. e5 {[%clk
0:02:43.7]} 11... Nd5 {[%clk 0:02:39.5]} 12. N2f3 {[%clk 0:02:42.5]} 12... c5
{[%clk 0:02:37.9]} 13. Bg5 {[%clk 0:02:39.5]} 13... Qd7 {[%clk 0:02:32.8]} 14.
Nb3 {[%clk 0:02:37.9]} 14... b6 {[%clk 0:02:32.1]} 15. Nbd2 {[%clk 0:02:37]}
15... h6 {[%clk 0:02:29]} 16. Bh4 {[%clk 0:02:35.9]} 16... Bb7 {[%clk
0:02:25.6]} 17. Ne4 {[%clk 0:02:36]} 17... g5 {[%clk 0:02:25.9]} 18. Bg3 {[%clk
0:02:30.2]} 18... Rad8 {[%clk 0:02:25.8]} 19. Qc2 {[%clk 0:02:27.2]} 19... Kh8
{[%clk 0:02:15.2]} 20. Rad1 {[%clk 0:02:18.6]} 20... Qf5 {[%clk 0:02:14.3]} 21.
Qb1 {[%clk 0:02:03.7]} 21... Nf4 {[%clk 0:02:07.8]} 22. Nexg5 {[%clk 0:01:51.6]}
22... Qxb1 {[%clk 0:01:58]} 23. Nxf7+ {[%clk 0:01:51.6]} 23... Kg8 {[%clk
0:01:58.5]} 24. Rxb1 {[%clk 0:01:52.4]} 24... Nh3+ {[%clk 0:01:52.5]} 25. gxh3
{[%clk 0:01:50.6]} 25... Kxf7 {[%clk 0:01:53.4]} 26. Re3 {[%clk 0:01:45]} 26...
Re6 {[%clk 0:01:41.6]} 27. Rbe1 {[%clk 0:01:39.2]} 27... Rde8 {[%clk 0:01:39.4]}
28. Nh4 {[%clk 0:01:37.7]} 28... h5 {[%clk 0:01:33.4]} 29. f4 {[%clk 0:01:32.4]}
29... Bh6 {[%clk 0:01:33.6]} 30. Nf5 {[%clk 0:01:17.2]} 30... Rg8 {[%clk
0:01:33.6]} 31. Kf2 {[%clk 0:01:12.4]} 31... Reg6 {[%clk 0:01:15.6]} 32. e6+
{[%clk 0:00:59.5]} 32... Ke8 {[%clk 0:01:15.3]} 33. e7 {[%clk 0:00:23.3]} 33...
Bxf4 {[%clk 0:01:15.1]} 34. Rd3 {[%clk 0:00:18.7]} 34... Bxg3+ {[%clk
0:01:05.1]} 35. hxg3 {[%clk 0:00:19.6]} 35... Bc6 {[%clk 0:00:58.2]} 36. Rd8+
{[%clk 0:00:11]} 36... Kf7 {[%clk 0:00:58.4]} 37. Rxg8 {[%clk 0:00:11.9]} 37...
Rxg8 {[%clk 0:00:58.8]} 38. Nh6+ {[%clk 0:00:12.3]} 1-0

[Event "Late-Titled-Tuesday-Blitz-September-05-2023"]
[Site "Chess.com"]
[Date "2023.09.05"]
[Round "6"]
[White "Nekoo04"]
[Black "KejJaj"]
[Result "0-1"]
[WhiteElo "2300"]
[BlackElo "2211"]
[TimeControl "180+1"]
[EndTime "15:06:14 PDT"]
[Termination "KejJaj won by checkmate"]

1. e4 {[%clk 0:03:00.9]} 1... c5 {[%clk 0:02:59.4]} 2. Nf3 {[%clk 0:02:55.2]}
2... d6 {[%clk 0:02:59.9]} 3. d3 {[%clk 0:02:53.7]} 3... g6 {[%clk 0:02:57.1]}
4. Nbd2 {[%clk 0:02:42.4]} 4... Bg7 {[%clk 0:02:56.4]} 5. g3 {[%clk 0:02:38.2]}
5... Nc6 {[%clk 0:02:55.5]} 6. Bg2 {[%clk 0:02:38.5]} 6... Rb8 {[%clk
0:02:54.2]} 7. O-O {[%clk 0:02:38.2]} 7... b5 {[%clk 0:02:47.8]} 8. Re1 {[%clk
0:02:34.2]} 8... h5 {[%clk 0:02:46]} 9. Nf1 {[%clk 0:02:31.9]} 9... Nf6 {[%clk
0:02:29.9]} 10. e5 {[%clk 0:02:20.6]} 10... dxe5 {[%clk 0:02:27.5]} 11. Nxe5
{[%clk 0:02:20.3]} 11... Nxe5 {[%clk 0:02:26.4]} 12. Rxe5 {[%clk 0:02:21.2]}
12... Nd7 {[%clk 0:02:22.9]} 13. Re1 {[%clk 0:02:16]} 13... O-O {[%clk 0:02:22]}
14. Bf4 {[%clk 0:02:08.6]} 14... e5 {[%clk 0:02:20.1]} 15. Be3 {[%clk
0:02:08.6]} 15... Qc7 {[%clk 0:02:16.2]} 16. Rb1 {[%clk 0:01:59.1]} 16... Bb7
{[%clk 0:02:16]} 17. Bxb7 {[%clk 0:01:48.8]} 17... Qxb7 {[%clk 0:02:16.2]} 18.
c4 {[%clk 0:01:38.5]} 18... b4 {[%clk 0:02:09.8]} 19. Nd2 {[%clk 0:01:37.9]}
19... Rbd8 {[%clk 0:01:59.1]} 20. Ne4 {[%clk 0:01:35.8]} 20... Qc7 {[%clk
0:01:58.3]} 21. Bg5 {[%clk 0:01:23.4]} 21... f6 {[%clk 0:01:56]} 22. Be3 {[%clk
0:01:22.3]} 22... Rfe8 {[%clk 0:01:45.6]} 23. Qf3 {[%clk 0:01:00.6]} 23... Re6
{[%clk 0:01:39.3]} 24. Rbd1 {[%clk 0:00:55.7]} 24... Rc6 {[%clk 0:01:37.9]} 25.
Nd2 {[%clk 0:00:33.3]} 25... Nf8 {[%clk 0:01:36.1]} 26. Nb3 {[%clk 0:00:32.3]}
26... Ne6 {[%clk 0:01:34]} 27. Qe4 {[%clk 0:00:19.7]} 27... f5 {[%clk
0:01:30.1]} 28. Qf3 {[%clk 0:00:19.5]} 28... Rcd6 {[%clk 0:01:26.7]} 29. Qe2
{[%clk 0:00:17.2]} 29... f4 {[%clk 0:01:22.6]} 30. Bc1 {[%clk 0:00:14.5]} 30...
Qc6 {[%clk 0:01:15.4]} 31. Na5 {[%clk 0:00:11]} 31... Qa8 {[%clk 0:01:13]} 32.
Nb3 {[%clk 0:00:09.9]} 32... Ng5 {[%clk 0:01:05.8]} 33. Kf1 {[%clk 0:00:01.4]}
33... Qh1# {[%clk 0:01:03.6]} 0-1

[Event "Late-Titled-Tuesday-Blitz-September-05-2023"]
[Site "Chess.com"]
[Date "2023.09.05"]
[Round "6"]
[White "Evhen_Taranenko"]
[Black "Boorchess"]
[Result "1/2-1/2"]
[WhiteElo "2457"]
[BlackElo "2559"]
[TimeControl "180+1"]
[EndTime "15:06:22 PDT"]
[Termination "Game drawn by repetition"]

1. e4 {[%clk 0:03:00.9]} 1... e5 {[%clk 0:02:59.4]} 2. Nf3 {[%clk 0:03:00.8]}
2... Nf6 {[%clk 0:02:59.6]} 3. Nxe5 {[%clk 0:03:00.3]} 3... d6 {[%clk
0:02:59.7]} 4. Nf3 {[%clk 0:02:59.3]} 4... Nxe4 {[%clk 0:02:59.5]} 5. Nc3 {[%clk
0:02:59.9]} 5... Nxc3 {[%clk 0:02:58.9]} 6. dxc3 {[%clk 0:03:00.8]} 6... Be7
{[%clk 0:02:59.2]} 7. Bd3 {[%clk 0:02:59.8]} 7... Be6 {[%clk 0:02:59.2]} 8. Be3
{[%clk 0:02:59.1]} 8... Nc6 {[%clk 0:02:58.9]} 9. Qd2 {[%clk 0:02:59.5]} 9... h6
{[%clk 0:02:58.6]} 10. O-O-O {[%clk 0:02:59.6]} 10... Qd7 {[%clk 0:02:58.8]} 11.
h3 {[%clk 0:02:56.4]} 11... a6 {[%clk 0:02:57]} 12. Rhe1 {[%clk 0:02:52.6]}
12... O-O-O {[%clk 0:02:56.4]} 13. Nd4 {[%clk 0:02:47.8]} 13... Nxd4 {[%clk
0:02:52.3]} 14. cxd4 {[%clk 0:02:32.5]} 14... d5 {[%clk 0:02:31]} 15. Bf4 {[%clk
0:02:26.1]} 15... Qa4 {[%clk 0:02:23.3]} 16. Kb1 {[%clk 0:02:11]} 16... Bf6
{[%clk 0:02:18.3]} 17. c3 {[%clk 0:02:08.2]} 17... Rhe8 {[%clk 0:02:11.6]} 18.
Qc2 {[%clk 0:02:03.8]} 18... Qxc2+ {[%clk 0:02:07.3]} 19. Bxc2 {[%clk
0:02:04.7]} 19... Bd7 {[%clk 0:01:56.5]} 20. Kc1 {[%clk 0:01:58.6]} 20... Rxe1
{[%clk 0:01:53.7]} 21. Rxe1 {[%clk 0:01:58]} 21... Re8 {[%clk 0:01:54.1]} 22.
Rxe8+ {[%clk 0:01:58]} 22... Bxe8 {[%clk 0:01:54.3]} 23. Kd2 {[%clk 0:01:56.7]}
23... Bd7 {[%clk 0:01:52.5]} 24. Ke3 {[%clk 0:01:55.3]} 24... Be6 {[%clk
0:01:49.9]} 25. Be5 {[%clk 0:01:55.2]} 25... Bxe5 {[%clk 0:01:47.4]} 26. dxe5
{[%clk 0:01:56.1]} 26... c5 {[%clk 0:01:40]} 27. f4 {[%clk 0:01:48]} 27... Kc7
{[%clk 0:01:36.1]} 28. f5 {[%clk 0:01:45.9]} 28... Bd7 {[%clk 0:01:31.5]} 29. g4
{[%clk 0:01:28.7]} 29... f6 {[%clk 0:01:31]} 30. e6 {[%clk 0:01:27.4]} 30... Be8
{[%clk 0:01:31.1]} 31. Bb3 {[%clk 0:01:23.4]} 31... Kd6 {[%clk 0:01:30.3]} 32.
Kf4 {[%clk 0:01:20.2]} 32... Bc6 {[%clk 0:01:28.8]} 33. h4 {[%clk 0:00:59.2]}
33... Ke7 {[%clk 0:01:25.1]} 34. g5 {[%clk 0:00:55.4]} 34... hxg5+ {[%clk
0:01:23.6]} 35. hxg5 {[%clk 0:00:56.3]} 35... b6 {[%clk 0:01:20.5]} 36. Bc2
{[%clk 0:00:40.5]} 36... Bb7 {[%clk 0:01:16.9]} 37. Bd3 {[%clk 0:00:39.4]} 37...
a5 {[%clk 0:01:13.9]} 38. Bb5 {[%clk 0:00:37]} 38... Ba8 {[%clk 0:01:11.9]} 39.
Bd3 {[%clk 0:00:37.1]} 39... Bc6 {[%clk 0:01:11.2]} 40. Kg4 {[%clk 0:00:35.6]}
40... Be8 {[%clk 0:01:06.3]} 41. Bc2 {[%clk 0:00:30.7]} 41... Kd6 {[%clk
0:01:05.4]} 42. Kf4 {[%clk 0:00:28.8]} 42... Bh5 {[%clk 0:01:01.4]} 43. Bd3
{[%clk 0:00:24.9]} 43... Be8 {[%clk 0:00:57]} 44. Bc2 {[%clk 0:00:25.1]} 44...
Bh5 {[%clk 0:00:56.3]} 45. Bd3 {[%clk 0:00:25.6]} 45... Be8 {[%clk 0:00:55]} 46.
Bc2 {[%clk 0:00:26.2]} 1/2-1/2